[Event "Titled Tuesday Blitz November 22 Early 2022"]
[White "Can, Isik"]
[Black "Ravot, Sylvain"]
[WhiteFideId "6383742"]
[BlackFideId "627763"]
[WhiteElo "2374"]
[BlackElo "2195"]
[Result "1-0"]
[Round "06"]
[TimeControl "180+1"]
[Date "2022.11.23"]
[WhiteClock "0:00:45"]
[BlackClock "0:00:01"]

1. e4 {[%clk 0:03:00]}  c5 {[%clk 0:02:47]} 2. Nf3 {[%clk 0:02:59]}  Nc6 {[%clk 0:02:39]} 3. d4 {[%clk 0:02:58]}  cxd4 {[%clk 0:02:40]} 4. Nxd4 {[%clk 0:02:59]}  g6 {[%clk 0:02:40]} 5. c4 {[%clk 0:02:58]}  Bg7 {[%clk 0:02:39]} 6. Be3 {[%clk 0:02:57]}  Nf6 {[%clk 0:02:39]} 7. Nc3 {[%clk 0:02:57]}  O-O {[%clk 0:02:38]} 8. Be2 {[%clk 0:02:57]}  d6 {[%clk 0:02:35]} 9. O-O {[%clk 0:02:56]}  Bd7 {[%clk 0:02:33]} 10. h3 {[%clk 0:02:49]}  Nxd4 {[%clk 0:02:20]} 11. Bxd4 {[%clk 0:02:50]}  a5 {[%clk 0:02:21]} 12. Qc2 {[%clk 0:02:16]}  Bc6 {[%clk 0:02:16]} 13. Rad1 {[%clk 0:02:07]}  Nd7 {[%clk 0:02:02]} 14. Bxg7 {[%clk 0:02:06]}  Kxg7 {[%clk 0:02:03]} 15. Bg4 {[%clk 0:02:06]}  Ra6 {[%clk 0:01:11]} 16. Bxd7 {[%clk 0:01:58]}  Bxd7 {[%clk 0:01:09]} 17. a4 {[%clk 0:01:52]}  Be6 {[%clk 0:00:43]} 18. b3 {[%clk 0:01:47]}  Qc7 {[%clk 0:00:30]} 19. f4 {[%clk 0:01:47]}  f5 {[%clk 0:00:22]} 20. Rde1 {[%clk 0:01:40]}  Rf7 {[%clk 0:00:19]} 21. Kh1 {[%clk 0:01:34]}  Qc6 {[%clk 0:00:16]} 22. Nb5 {[%clk 0:01:26]}  Ra8 {[%clk 0:00:13]} 23. Nd4 {[%clk 0:01:25]}  Qd7 {[%clk 0:00:11]} 24. Qc3 {[%clk 0:01:17]}  Kg8 {[%clk 0:00:11]} 25. exf5 {[%clk 0:01:17]}  Bxf5 {[%clk 0:00:11]} 26. g4 {[%clk 0:01:18]}  e5 {[%clk 0:00:06]} 27. fxe5 {[%clk 0:01:10]}  dxe5 {[%clk 0:00:06]} 28. Nf3 {[%clk 0:00:48]}  Bxg4 {[%clk 0:00:01]} 29. Nxe5 {[%clk 0:00:45]}  Rxf1+ {[%clk 0:00:02]} 30. Rxf1 {[%clk 0:00:45]}  Qe6 {[%clk 0:00:02]} 31. hxg4 {[%clk 0:00:45]}  Re8 {[%clk 0:00:01]} 32. Re1 {[%clk 0:00:45]} 1-0


[Site "https://www.chess.com"]

[Event "Titled Tuesday Blitz November 22 Early 2022"]
[White "Cramling Bellon, Anna"]
[Black "Shapiro, Daniel"]
[WhiteFideId "32009232"]
[BlackFideId "2001780"]
[WhiteElo "1972"]
[BlackElo "2329"]
[Result "1-0"]
[Round "06"]
[TimeControl "180+1"]
[Date "2022.11.23"]
[WhiteClock "0:00:03"]
[BlackClock "0:00:06"]

1. d4 {[%clk 0:03:00]}  Nf6 {[%clk 0:02:56]} 2. c4 {[%clk 0:03:00]}  e6 {[%clk 0:02:56]} 3. Nf3 {[%clk 0:02:59]}  d5 {[%clk 0:02:54]} 4. Nc3 {[%clk 0:02:59]}  Bb4 {[%clk 0:02:47]} 5. Qc2 {[%clk 0:02:49]}  O-O {[%clk 0:02:44]} 6. Bg5 {[%clk 0:02:49]}  b6 {[%clk 0:02:38]} 7. e3 {[%clk 0:02:47]}  Bb7 {[%clk 0:02:34]} 8. cxd5 {[%clk 0:02:33]}  exd5 {[%clk 0:02:33]} 9. Bd3 {[%clk 0:02:32]}  h6 {[%clk 0:02:19]} 10. Bh4 {[%clk 0:02:32]}  Nbd7 {[%clk 0:02:18]} 11. O-O {[%clk 0:02:31]}  Re8 {[%clk 0:02:08]} 12. Ne2 {[%clk 0:02:16]}  Bd6 {[%clk 0:01:55]} 13. Bg3 {[%clk 0:02:05]}  Qe7 {[%clk 0:01:47]} 14. Rac1 {[%clk 0:01:53]}  Rac8 {[%clk 0:01:45]} 15. Bxd6 {[%clk 0:01:47]}  Qxd6 {[%clk 0:01:45]} 16. Ng3 {[%clk 0:01:46]}  c5 {[%clk 0:01:41]} 17. Nf5 {[%clk 0:01:45]}  Qb8 {[%clk 0:01:35]} 18. Qd2 {[%clk 0:01:32]}  Ne4 {[%clk 0:01:31]} 19. Qe2 {[%clk 0:00:54]}  c4 {[%clk 0:01:31]} 20. Bxe4 {[%clk 0:00:48]}  dxe4 {[%clk 0:01:25]} 21. Nd2 {[%clk 0:00:44]}  b5 {[%clk 0:01:25]} 22. Qg4 {[%clk 0:00:43]}  g6 {[%clk 0:00:56]} 23. Nxh6+ {[%clk 0:00:42]}  Kg7 {[%clk 0:00:57]} 24. Qxd7 {[%clk 0:00:21]}  Kxh6 {[%clk 0:00:49]} 25. Qxb5 {[%clk 0:00:21]}  Qa8 {[%clk 0:00:19]} 26. Rxc4 {[%clk 0:00:19]}  Bd5 {[%clk 0:00:16]} 27. Rc5 {[%clk 0:00:17]}  Rb8 {[%clk 0:00:15]} 28. Qa5 {[%clk 0:00:17]}  Rxb2 {[%clk 0:00:13]} 29. Rxd5 {[%clk 0:00:07]}  Rxd2 {[%clk 0:00:13]} 30. Rd7 {[%clk 0:00:06]}  Rc2 {[%clk 0:00:11]} 31. Rxf7 {[%clk 0:00:05]}  Qc6 {[%clk 0:00:11]} 32. Rf4 {[%clk 0:00:04]}  Rc1 {[%clk 0:00:11]} 33. Rh4+ {[%clk 0:00:04]}  Kg7 {[%clk 0:00:11]} 34. Qd2 {[%clk 0:00:01]}  Rc8 {[%clk 0:00:09]} 35. g3 {[%clk 0:00:01]}  Rc2 {[%clk 0:00:09]} 36. Qd1 {[%clk 0:00:01]}  Rxa2 {[%clk 0:00:09]} 37. Qg4 {[%clk 0:00:01]}  Qf6 {[%clk 0:00:09]} 38. Qf4 {[%clk 0:00:01]}  Qf5 {[%clk 0:00:08]} 39. Qxe4 {[%clk 0:00:01]}  Rcc2 {[%clk 0:00:07]} 40. Qe7+ {[%clk 0:00:01]}  Kg8 {[%clk 0:00:06]} 41. Qe8+ {[%clk 0:00:01]}  Kg7 {[%clk 0:00:06]} 42. Qh8+ {[%clk 0:00:02]}  Kf7 {[%clk 0:00:06]} 43. Rh7+ {[%clk 0:00:02]}  Ke6 {[%clk 0:00:07]} 44. Qe8+ {[%clk 0:00:02]}  Kd6 {[%clk 0:00:07]} 45. Qd8+ {[%clk 0:00:02]}  Kc6 {[%clk 0:00:06]} 46. Rc7+ {[%clk 0:00:02]}  Kb5 {[%clk 0:00:06]} 47. Qb8+ {[%clk 0:00:02]}  Ka6 {[%clk 0:00:06]} 48. Rxa7# {[%clk 0:00:03]} 1-0


[Site "https://www.chess.com"]

[Event "Titled Tuesday Blitz November 22 Early 2022"]
[White "Danielian, Vardan"]
[Black "Movahed, Sina"]
[WhiteFideId "13301594"]
[BlackFideId "42520835"]
[WhiteElo "2561"]
[BlackElo "2225"]
[Result "0-1"]
[Round "06"]
[TimeControl "180+1"]
[Date "2022.11.23"]
[WhiteClock "0:00:02"]
[BlackClock "0:00:08"]

1. d4 {[%clk 0:02:49]}  Nf6 {[%clk 0:02:59]} 2. Nf3 {[%clk 0:02:48]}  g6 {[%clk 0:03:00]} 3. g3 {[%clk 0:02:46]}  Bg7 {[%clk 0:03:01]} 4. Bg2 {[%clk 0:02:40]}  O-O {[%clk 0:03:02]} 5. O-O {[%clk 0:02:38]}  d6 {[%clk 0:03:01]} 6. c4 {[%clk 0:02:37]}  Nbd7 {[%clk 0:03:01]} 7. Nc3 {[%clk 0:02:37]}  e5 {[%clk 0:03:02]} 8. dxe5 {[%clk 0:02:38]}  dxe5 {[%clk 0:03:01]} 9. h3 {[%clk 0:02:37]}  c6 {[%clk 0:02:59]} 10. Be3 {[%clk 0:02:37]}  Qe7 {[%clk 0:02:58]} 11. Qb3 {[%clk 0:02:31]}  Re8 {[%clk 0:02:48]} 12. Rfd1 {[%clk 0:02:31]}  Nc5 {[%clk 0:02:47]} 13. Qa3 {[%clk 0:02:30]}  Bf8 {[%clk 0:02:32]} 14. Ng5 {[%clk 0:02:21]}  h6 {[%clk 0:02:21]} 15. Bxc5 {[%clk 0:02:12]}  Qxc5 {[%clk 0:02:20]} 16. Nge4 {[%clk 0:02:05]}  Nxe4 {[%clk 0:02:17]} 17. Nxe4 {[%clk 0:02:04]}  Qxa3 {[%clk 0:02:09]} 18. Nf6+ {[%clk 0:02:04]}  Kh8 {[%clk 0:02:08]} 19. bxa3 {[%clk 0:02:03]}  Re6 {[%clk 0:02:02]} 20. Rd8 {[%clk 0:01:55]}  Rxf6 {[%clk 0:01:52]} 21. Rxf8+ {[%clk 0:01:54]}  Kg7 {[%clk 0:01:52]} 22. Rd8 {[%clk 0:01:52]}  a5 {[%clk 0:01:47]} 23. Rad1 {[%clk 0:01:47]}  Re6 {[%clk 0:01:35]} 24. h4 {[%clk 0:01:38]}  Re7 {[%clk 0:01:29]} 25. Bh3 {[%clk 0:01:25]}  Rc7 {[%clk 0:01:24]} 26. Re8 {[%clk 0:01:16]}  b5 {[%clk 0:01:10]} 27. cxb5 {[%clk 0:01:00]}  cxb5 {[%clk 0:01:11]} 28. Rdd8 {[%clk 0:00:47]}  Rc1+ {[%clk 0:01:05]} 29. Kh2 {[%clk 0:00:46]}  Bb7 {[%clk 0:01:04]} 30. Bg2 {[%clk 0:00:39]}  Bxg2 {[%clk 0:01:00]} 31. Rxa8 {[%clk 0:00:30]}  Bb7 {[%clk 0:00:48]} 32. f3 {[%clk 0:00:25]}  Bxa8 {[%clk 0:00:44]} 33. Rxa8 {[%clk 0:00:26]}  Rc2 {[%clk 0:00:42]} 34. Rxa5 {[%clk 0:00:25]}  Rxe2+ {[%clk 0:00:42]} 35. Kh3 {[%clk 0:00:24]}  Rxa2 {[%clk 0:00:32]} 36. Rxb5 {[%clk 0:00:24]}  Rxa3 {[%clk 0:00:33]} 37. Rxe5 {[%clk 0:00:23]}  Rxf3 {[%clk 0:00:33]} 38. Kg2 {[%clk 0:00:22]}  Ra3 {[%clk 0:00:33]} 39. Rb5 {[%clk 0:00:22]}  Rd3 {[%clk 0:00:30]} 40. Rc5 {[%clk 0:00:23]}  Rd6 {[%clk 0:00:30]} 41. Rb5 {[%clk 0:00:23]}  Kf6 {[%clk 0:00:30]} 42. Rc5 {[%clk 0:00:23]}  Re6 {[%clk 0:00:30]} 43. Rb5 {[%clk 0:00:23]}  Re5 {[%clk 0:00:30]} 44. Rb7 {[%clk 0:00:24]}  Re7 {[%clk 0:00:26]} 45. Rb5 {[%clk 0:00:24]}  Rd7 {[%clk 0:00:21]} 46. Rc5 {[%clk 0:00:23]}  Rd6 {[%clk 0:00:20]} 47. Rb5 {[%clk 0:00:23]}  Ke6 {[%clk 0:00:21]} 48. Rc5 {[%clk 0:00:23]}  Rd5 {[%clk 0:00:21]} 49. Rc7 {[%clk 0:00:24]}  g5 {[%clk 0:00:19]} 50. hxg5 {[%clk 0:00:23]}  hxg5 {[%clk 0:00:20]} 51. Ra7 {[%clk 0:00:23]}  f6 {[%clk 0:00:19]} 52. Kf3 {[%clk 0:00:23]}  Rd3+ {[%clk 0:00:18]} 53. Kf2 {[%clk 0:00:23]}  Kf5 {[%clk 0:00:18]} 54. Ra4 {[%clk 0:00:23]}  Rd2+ {[%clk 0:00:16]} 55. Kf3 {[%clk 0:00:23]}  g4+ {[%clk 0:00:15]} 56. Ke3 {[%clk 0:00:16]}  Rg2 {[%clk 0:00:16]} 57. Ra5+ {[%clk 0:00:16]}  Kg6 {[%clk 0:00:14]} 58. Kf4 {[%clk 0:00:16]}  f5 {[%clk 0:00:14]} 59. Ra6+ {[%clk 0:00:16]}  Kh5 {[%clk 0:00:14]} 60. Kxf5 {[%clk 0:00:16]}  Rxg3 {[%clk 0:00:14]} 61. Ra8 {[%clk 0:00:05]}  Rf3+ {[%clk 0:00:14]} 62. Ke4 {[%clk 0:00:05]}  Rf7 {[%clk 0:00:12]} 63. Ke3 {[%clk 0:00:05]}  Kh4 {[%clk 0:00:12]} 64. Ra1 {[%clk 0:00:04]}  Kh3 {[%clk 0:00:12]} 65. Ke2 {[%clk 0:00:04]}  g3 {[%clk 0:00:11]} 66. Ra8 {[%clk 0:00:03]}  Kg2 {[%clk 0:00:10]} 67. Rh8 {[%clk 0:00:03]}  Re7+ {[%clk 0:00:10]} 68. Kd1 {[%clk 0:00:03]}  Kg1 {[%clk 0:00:10]} 69. Kd2 {[%clk 0:00:03]}  g2 {[%clk 0:00:11]} 70. Kd1 {[%clk 0:00:03]}  Re5 {[%clk 0:00:10]} 71. Kd2 {[%clk 0:00:03]}  Re7 {[%clk 0:00:08]} 72. Kd1 {[%clk 0:00:02]}  Re4 {[%clk 0:00:08]} 73. Kd2 {[%clk 0:00:02]}  Kf2 {[%clk 0:00:07]} 74. Rf8+ {[%clk 0:00:02]}  Kg3 {[%clk 0:00:07]} 75. Rg8+ {[%clk 0:00:02]}  Rg4 {[%clk 0:00:08]} 0-1


[Site "https://www.chess.com"]

[Event "Titled Tuesday Blitz November 22 Early 2022"]
[White "Decuigniere, Tom"]
[Black "Hambleton, Aman"]
[WhiteFideId "26093820"]
[BlackFideId "2606577"]
[WhiteElo "2252"]
[BlackElo "2538"]
[Result "1-0"]
[Round "06"]
[TimeControl "180+1"]
[Date "2022.11.23"]
[WhiteClock "0:00:05"]
[BlackClock "0:00:04"]

1. c4 {[%clk 0:03:00]}  c5 {[%clk 0:02:44]} 2. Nc3 {[%clk 0:02:59]}  b6 {[%clk 0:02:36]} 3. Nf3 {[%clk 0:02:56]}  Bb7 {[%clk 0:02:36]} 4. g3 {[%clk 0:02:56]}  Bxf3 {[%clk 0:02:34]} 5. exf3 {[%clk 0:02:57]}  Nc6 {[%clk 0:02:34]} 6. Bg2 {[%clk 0:02:57]}  Nh6 {[%clk 0:02:34]} 7. O-O {[%clk 0:02:54]}  g6 {[%clk 0:02:32]} 8. f4 {[%clk 0:02:49]}  Nf5 {[%clk 0:02:30]} 9. a3 {[%clk 0:02:38]}  Rc8 {[%clk 0:02:00]} 10. b4 {[%clk 0:02:16]}  d6 {[%clk 0:02:00]} 11. Qa4 {[%clk 0:02:13]}  Qd7 {[%clk 0:02:00]} 12. Nb5 {[%clk 0:01:44]}  Bg7 {[%clk 0:01:48]} 13. Rb1 {[%clk 0:01:44]}  Nfd4 {[%clk 0:01:39]} 14. Nxd4 {[%clk 0:01:40]}  Nxd4 {[%clk 0:01:39]} 15. Qxd7+ {[%clk 0:01:33]}  Kxd7 {[%clk 0:01:39]} 16. d3 {[%clk 0:01:26]}  e6 {[%clk 0:00:55]} 17. Bb2 {[%clk 0:01:22]}  Ne2+ {[%clk 0:00:54]} 18. Kh1 {[%clk 0:01:21]}  Bxb2 {[%clk 0:00:55]} 19. Rxb2 {[%clk 0:01:21]}  Nd4 {[%clk 0:00:55]} 20. Ra1 {[%clk 0:01:04]}  Rc7 {[%clk 0:00:49]} 21. b5 {[%clk 0:01:01]}  Ke7 {[%clk 0:00:16]} 22. a4 {[%clk 0:01:00]}  Rd8 {[%clk 0:00:16]} 23. a5 {[%clk 0:00:53]}  d5 {[%clk 0:00:16]} 24. h4 {[%clk 0:00:49]}  dxc4 {[%clk 0:00:04]} 25. dxc4 {[%clk 0:00:50]}  Rd6 {[%clk 0:00:04]} 26. axb6 {[%clk 0:00:47]}  axb6 {[%clk 0:00:05]} 27. Ra6 {[%clk 0:00:44]}  h6 {[%clk 0:00:03]} 28. Kh2 {[%clk 0:00:31]}  Kf6 {[%clk 0:00:03]} 29. Kh3 {[%clk 0:00:30]}  Rcd7 {[%clk 0:00:03]} 30. Rd2 {[%clk 0:00:24]}  h5 {[%clk 0:00:03]} 31. Bc6 {[%clk 0:00:16]}  Rc7 {[%clk 0:00:01]} 32. Rxb6 {[%clk 0:00:14]}  Ke7 {[%clk 0:00:02]} 33. Ra6 {[%clk 0:00:11]}  Nxc6 {[%clk 0:00:02]} 34. Rxd6 {[%clk 0:00:11]}  Kxd6 {[%clk 0:00:03]} 35. bxc6 {[%clk 0:00:11]}  Rxc6 {[%clk 0:00:04]} 36. Ra7 {[%clk 0:00:10]}  Rc7 {[%clk 0:00:04]} 37. Ra6+ {[%clk 0:00:11]}  Ke7 {[%clk 0:00:05]} 38. Ra5 {[%clk 0:00:09]}  Rc6 {[%clk 0:00:03]} 39. Kg2 {[%clk 0:00:06]}  Kd6 {[%clk 0:00:02]} 40. Ra7 {[%clk 0:00:06]}  Rc7 {[%clk 0:00:02]} 41. Ra6+ {[%clk 0:00:07]}  Kd7 {[%clk 0:00:02]} 42. Kf3 {[%clk 0:00:06]}  Rb7 {[%clk 0:00:03]} 43. Ra5 {[%clk 0:00:06]}  Kc6 {[%clk 0:00:03]} 44. Ra6+ {[%clk 0:00:07]}  Kc7 {[%clk 0:00:03]} 45. Ra5 {[%clk 0:00:07]}  Kb6 {[%clk 0:00:03]} 46. Rb5+ {[%clk 0:00:08]}  Kc6 {[%clk 0:00:03]} 47. Rxb7 {[%clk 0:00:04]}  Kxb7 {[%clk 0:00:04]} 48. Ke4 {[%clk 0:00:03]}  f6 {[%clk 0:00:05]} 49. Kd3 {[%clk 0:00:03]}  Kc6 {[%clk 0:00:02]} 50. f3 {[%clk 0:00:02]}  Kd6 {[%clk 0:00:01]} 51. Ke4 {[%clk 0:00:02]}  Kc7 {[%clk 0:00:02]} 52. Kd3 {[%clk 0:00:03]}  Kc6 {[%clk 0:00:02]} 53. Kc3 {[%clk 0:00:03]}  Kd6 {[%clk 0:00:02]} 54. Kd3 {[%clk 0:00:04]}  e5 {[%clk 0:00:02]} 55. Ke4 {[%clk 0:00:04]}  exf4 {[%clk 0:00:01]} 56. Kxf4 {[%clk 0:00:05]}  Kc6 {[%clk 0:00:01]} 57. Ke4 {[%clk 0:00:05]}  Kd6 {[%clk 0:00:01]} 58. g4 {[%clk 0:00:06]}  Ke6 {[%clk 0:00:01]} 59. gxh5 {[%clk 0:00:03]}  gxh5 {[%clk 0:00:02]} 60. Kf4 {[%clk 0:00:03]}  Ke7 {[%clk 0:00:02]} 61. Kf5 {[%clk 0:00:04]}  Kf7 {[%clk 0:00:01]} 62. f4 {[%clk 0:00:04]}  Ke7 {[%clk 0:00:02]} 63. Kg6 {[%clk 0:00:05]}  Ke6 {[%clk 0:00:02]} 64. Kxh5 {[%clk 0:00:04]}  Kf5 {[%clk 0:00:03]} 65. Kh6 {[%clk 0:00:04]}  Kxf4 {[%clk 0:00:04]} 66. h5 {[%clk 0:00:04]}  Ke4 {[%clk 0:00:01]} 67. Kg6 {[%clk 0:00:04]}  f5 {[%clk 0:00:02]} 68. h6 {[%clk 0:00:04]}  f4 {[%clk 0:00:03]} 69. h7 {[%clk 0:00:05]}  f3 {[%clk 0:00:04]} 70. h8=Q {[%clk 0:00:06]}  f2 {[%clk 0:00:04]} 71. Qf6 {[%clk 0:00:06]}  f1=Q {[%clk 0:00:04]} 72. Qxf1 {[%clk 0:00:05]} 1-0


[Site "https://www.chess.com"]

[Event "Titled Tuesday Blitz November 22 Early 2022"]
[White "Devaev, Alexander"]
[Black "Aloma Vidal, Robert"]
[WhiteFideId "4169395"]
[BlackFideId "2260409"]
[WhiteElo "2225"]
[BlackElo "2435"]
[Result "0-1"]
[Round "06"]
[TimeControl "180+1"]
[Date "2022.11.23"]
[WhiteClock "0:00:15"]
[BlackClock "0:00:40"]

1. d4 {[%clk 0:02:46]}  d5 {[%clk 0:02:58]} 2. c4 {[%clk 0:02:43]}  c6 {[%clk 0:02:59]} 3. Nc3 {[%clk 0:02:42]}  Nf6 {[%clk 0:02:58]} 4. Nf3 {[%clk 0:02:42]}  e6 {[%clk 0:02:58]} 5. cxd5 {[%clk 0:02:42]}  exd5 {[%clk 0:02:58]} 6. Qc2 {[%clk 0:02:42]}  g6 {[%clk 0:02:57]} 7. Bg5 {[%clk 0:02:39]}  Bg7 {[%clk 0:02:48]} 8. e3 {[%clk 0:02:38]}  Bf5 {[%clk 0:02:46]} 9. Bd3 {[%clk 0:02:36]}  Bxd3 {[%clk 0:02:46]} 10. Qxd3 {[%clk 0:02:36]}  O-O {[%clk 0:02:37]} 11. Bxf6 {[%clk 0:02:15]}  Qxf6 {[%clk 0:02:35]} 12. O-O {[%clk 0:02:16]}  Nd7 {[%clk 0:02:34]} 13. b4 {[%clk 0:02:16]}  a6 {[%clk 0:02:31]} 14. a4 {[%clk 0:02:16]}  b5 {[%clk 0:02:31]} 15. a5 {[%clk 0:02:15]}  Qe7 {[%clk 0:02:17]} 16. Na2 {[%clk 0:02:14]}  f5 {[%clk 0:02:17]} 17. Rac1 {[%clk 0:02:15]}  Rac8 {[%clk 0:02:10]} 18. Rfe1 {[%clk 0:02:14]}  g5 {[%clk 0:02:00]} 19. Rc2 {[%clk 0:02:05]}  g4 {[%clk 0:02:00]} 20. Nd2 {[%clk 0:02:04]}  f4 {[%clk 0:01:48]} 21. e4 {[%clk 0:02:04]}  dxe4 {[%clk 0:01:44]} 22. Nxe4 {[%clk 0:01:57]}  Kh8 {[%clk 0:01:35]} 23. Rce2 {[%clk 0:01:43]}  f3 {[%clk 0:01:34]} 24. Re3 {[%clk 0:01:42]}  fxg2 {[%clk 0:01:30]} 25. d5 {[%clk 0:00:48]}  cxd5 {[%clk 0:01:27]} 26. Qxd5 {[%clk 0:00:49]}  Nf6 {[%clk 0:01:24]} 27. Nxf6 {[%clk 0:00:40]}  Qxf6 {[%clk 0:01:25]} 28. Qxg2 {[%clk 0:00:40]}  Rc2 {[%clk 0:01:23]} 29. R3e2 {[%clk 0:00:39]}  Qb2 {[%clk 0:00:46]} 30. Nc1 {[%clk 0:00:15]}  Rxc1 {[%clk 0:00:40]} 0-1


[Site "https://www.chess.com"]

[Event "Titled Tuesday Blitz November 22 Early 2022"]
[White "Diaz Rosas, Julio Cesar"]
[Black "Harsh Suresh"]
[WhiteFideId "5105099"]
[BlackFideId "45018464"]
[WhiteElo "2246"]
[BlackElo "2227"]
[Result "1/2-1/2"]
[Round "06"]
[TimeControl "180+1"]
[Date "2022.11.23"]
[WhiteClock "0:00:09"]
[BlackClock "0:00:05"]

1. e4 {[%clk 0:03:00]}  c5 {[%clk 0:02:57]} 2. Nf3 {[%clk 0:02:56]}  g6 {[%clk 0:02:57]} 3. d4 {[%clk 0:02:56]}  cxd4 {[%clk 0:02:58]} 4. Qxd4 {[%clk 0:02:57]}  Nf6 {[%clk 0:02:57]} 5. e5 {[%clk 0:02:57]}  Nc6 {[%clk 0:02:57]} 6. Qa4 {[%clk 0:02:58]}  Nd5 {[%clk 0:02:58]} 7. Qe4 {[%clk 0:02:58]}  Nc7 {[%clk 0:02:58]} 8. Bf4 {[%clk 0:02:50]}  Bg7 {[%clk 0:02:58]} 9. Nc3 {[%clk 0:02:49]}  O-O {[%clk 0:02:56]} 10. O-O-O {[%clk 0:02:40]}  Ne6 {[%clk 0:02:56]} 11. Be3 {[%clk 0:02:29]}  b6 {[%clk 0:02:56]} 12. Bc4 {[%clk 0:02:27]}  Bb7 {[%clk 0:02:53]} 13. h4 {[%clk 0:02:18]}  Nxe5 {[%clk 0:02:50]} 14. Bd5 {[%clk 0:01:57]}  Bxd5 {[%clk 0:02:48]} 15. Rxd5 {[%clk 0:01:50]}  Nxf3 {[%clk 0:02:37]} 16. gxf3 {[%clk 0:01:49]}  Qc7 {[%clk 0:02:09]} 17. Bd2 {[%clk 0:01:42]}  h5 {[%clk 0:01:59]} 18. Rg1 {[%clk 0:01:36]}  Rac8 {[%clk 0:01:52]} 19. f4 {[%clk 0:01:19]}  Qc4 {[%clk 0:01:37]} 20. Qxc4 {[%clk 0:01:13]}  Rxc4 {[%clk 0:01:37]} 21. f5 {[%clk 0:01:08]}  gxf5 {[%clk 0:01:13]} 22. Rxf5 {[%clk 0:01:06]}  Rxh4 {[%clk 0:01:12]} 23. Nd5 {[%clk 0:00:59]}  Re8 {[%clk 0:01:12]} 24. f3 {[%clk 0:00:55]}  Nd4 {[%clk 0:01:04]} 25. Rfg5 {[%clk 0:00:45]}  Ne2+ {[%clk 0:01:04]} 26. Kd1 {[%clk 0:00:43]}  Nxg1 {[%clk 0:01:05]} 27. Rxg1 {[%clk 0:00:43]}  Rd4 {[%clk 0:00:56]} 28. Ne3 {[%clk 0:00:40]}  e6 {[%clk 0:00:48]} 29. Ke2 {[%clk 0:00:38]}  Rxd2+ {[%clk 0:00:40]} 30. Kxd2 {[%clk 0:00:38]}  Kh7 {[%clk 0:00:41]} 31. Rh1 {[%clk 0:00:33]}  Kg6 {[%clk 0:00:41]} 32. Ng2 {[%clk 0:00:27]}  Bh6+ {[%clk 0:00:35]} 33. Kd3 {[%clk 0:00:27]}  Bg5 {[%clk 0:00:34]} 34. f4 {[%clk 0:00:26]}  Bf6 {[%clk 0:00:35]} 35. c3 {[%clk 0:00:21]}  Rh8 {[%clk 0:00:33]} 36. Ke4 {[%clk 0:00:17]}  h4 {[%clk 0:00:30]} 37. Ne3 {[%clk 0:00:15]}  d5+ {[%clk 0:00:28]} 38. Kf3 {[%clk 0:00:15]}  Kg7 {[%clk 0:00:20]} 39. Ng4 {[%clk 0:00:14]}  Be7 {[%clk 0:00:20]} 40. f5 {[%clk 0:00:15]}  exf5 {[%clk 0:00:19]} 41. Ne3 {[%clk 0:00:14]}  Kg6 {[%clk 0:00:19]} 42. Nxd5 {[%clk 0:00:15]}  Bg5 {[%clk 0:00:20]} 43. Rg1 {[%clk 0:00:15]}  h3 {[%clk 0:00:15]} 44. Nf4+ {[%clk 0:00:12]}  Kf6 {[%clk 0:00:15]} 45. Ne2 {[%clk 0:00:11]}  h2 {[%clk 0:00:15]} 46. Rh1 {[%clk 0:00:12]}  Ke5 {[%clk 0:00:11]} 47. Ng3 {[%clk 0:00:11]}  Kf6 {[%clk 0:00:07]} 48. Ne2 {[%clk 0:00:11]}  Bd2 {[%clk 0:00:07]} 49. Ng3 {[%clk 0:00:09]}  Bg5 {[%clk 0:00:05]} 50. Ne2 {[%clk 0:00:09]} 1/2-1/2


[Site "https://www.chess.com"]

[Event "Titled Tuesday Blitz November 22 Early 2022"]
[White "Djokic, Mihailo"]
[Black "Sadhwani, Raunak"]
[WhiteFideId "976440"]
[BlackFideId "35093487"]
[WhiteElo "2315"]
[BlackElo "2656"]
[Result "1-0"]
[Round "06"]
[TimeControl "180+1"]
[Date "2022.11.23"]
[WhiteClock "0:00:07"]
[BlackClock "0:00:03"]

1. e4 {[%clk 0:02:51]}  c6 {[%clk 0:03:00]} 2. d4 {[%clk 0:02:51]}  d5 {[%clk 0:03:00]} 3. exd5 {[%clk 0:02:50]}  cxd5 {[%clk 0:03:00]} 4. Nf3 {[%clk 0:02:50]}  Nf6 {[%clk 0:02:59]} 5. Bd3 {[%clk 0:02:50]}  Nc6 {[%clk 0:02:57]} 6. O-O {[%clk 0:02:49]}  Bg4 {[%clk 0:02:57]} 7. c3 {[%clk 0:02:50]}  e6 {[%clk 0:02:57]} 8. h3 {[%clk 0:02:50]}  Bh5 {[%clk 0:02:57]} 9. Re1 {[%clk 0:02:50]}  Bd6 {[%clk 0:02:57]} 10. Nbd2 {[%clk 0:02:51]}  O-O {[%clk 0:02:57]} 11. Nf1 {[%clk 0:02:50]}  Qc7 {[%clk 0:02:57]} 12. Bg5 {[%clk 0:02:47]}  Nd7 {[%clk 0:02:56]} 13. Rc1 {[%clk 0:02:42]}  Rae8 {[%clk 0:02:55]} 14. Bh4 {[%clk 0:02:33]}  f6 {[%clk 0:02:46]} 15. Bg3 {[%clk 0:02:29]}  e5 {[%clk 0:02:04]} 16. dxe5 {[%clk 0:02:27]}  fxe5 {[%clk 0:02:05]} 17. Be2 {[%clk 0:02:23]}  Nf6 {[%clk 0:02:03]} 18. Ne3 {[%clk 0:02:19]}  Bf7 {[%clk 0:01:42]} 19. Ng5 {[%clk 0:02:16]}  Bc5 {[%clk 0:01:41]} 20. Nc2 {[%clk 0:01:42]}  h6 {[%clk 0:01:25]} 21. Nxf7 {[%clk 0:01:40]}  Qxf7 {[%clk 0:01:26]} 22. b4 {[%clk 0:01:36]}  Bb6 {[%clk 0:01:20]} 23. b5 {[%clk 0:01:26]}  Ne4 {[%clk 0:01:19]} 24. Bf3 {[%clk 0:01:08]}  Na5 {[%clk 0:00:59]} 25. Bxe4 {[%clk 0:00:57]}  Bxf2+ {[%clk 0:00:52]} 26. Kh1 {[%clk 0:00:57]}  dxe4 {[%clk 0:00:42]} 27. Rf1 {[%clk 0:00:51]}  Bxg3 {[%clk 0:00:36]} 28. Rxf7 {[%clk 0:00:51]}  Rxf7 {[%clk 0:00:37]} 29. Qe2 {[%clk 0:00:42]}  Ref8 {[%clk 0:00:33]} 30. Ne3 {[%clk 0:00:37]}  Rf2 {[%clk 0:00:22]} 31. Qg4 {[%clk 0:00:37]}  Bf4 {[%clk 0:00:22]} 32. Re1 {[%clk 0:00:32]}  Kh8 {[%clk 0:00:20]} 33. Nd5 {[%clk 0:00:30]}  Nc4 {[%clk 0:00:16]} 34. Ne7 {[%clk 0:00:27]}  Re8 {[%clk 0:00:10]} 35. Qd7 {[%clk 0:00:25]}  Ra8 {[%clk 0:00:05]} 36. Qxb7 {[%clk 0:00:25]}  Nb6 {[%clk 0:00:05]} 37. Qxe4 {[%clk 0:00:24]}  Rd8 {[%clk 0:00:04]} 38. c4 {[%clk 0:00:21]}  Rdd2 {[%clk 0:00:04]} 39. c5 {[%clk 0:00:20]}  Nd7 {[%clk 0:00:04]} 40. c6 {[%clk 0:00:20]}  Nf6 {[%clk 0:00:04]} 41. Qg6 {[%clk 0:00:20]}  Rfe2 {[%clk 0:00:04]} 42. Rf1 {[%clk 0:00:18]}  Rf2 {[%clk 0:00:04]} 43. Rb1 {[%clk 0:00:16]}  Rc2 {[%clk 0:00:03]} 44. Kg1 {[%clk 0:00:10]}  Rfe2 {[%clk 0:00:02]} 45. a4 {[%clk 0:00:07]}  Be3+ {[%clk 0:00:03]} 46. Kh1 {[%clk 0:00:08]}  Bf4 {[%clk 0:00:03]} 47. a5 {[%clk 0:00:07]}  e4 {[%clk 0:00:04]} 48. b6 {[%clk 0:00:07]}  axb6 {[%clk 0:00:04]} 49. axb6 {[%clk 0:00:07]}  Rb2 {[%clk 0:00:04]} 50. Rf1 {[%clk 0:00:07]}  Rf2 {[%clk 0:00:04]} 51. Rg1 {[%clk 0:00:07]}  Rxb6 {[%clk 0:00:03]} 52. Nf5 {[%clk 0:00:07]} 1-0


[Site "https://www.chess.com"]